[Event "Fagernes GM-A 2019"]
[Site "Fagernes"]
[Date "2019.04.14"]
[Round "1.2"]
[White "Alekseev, Evgeny"]
[Black "Nordquelle, Daniel"]
[Result "1-0"]
[ECO "D30"]
[WhiteElo "2649"]
[BlackElo "2264"]
[Annotator "RC"]
[PlyCount "63"]
[EventDate "2019.04.14"]
[EventType "tourn"]
[EventCountry "NOR"]
[SourceTitle "playchess.com"]
[Source "ChessBase"]
[SourceQuality "1"]
[TimeControl "40/7200:3600"]

1. d4 {[%emt 0:00:23]} d5 {[%emt 0:00:46]} 2. Nf3 {[%emt 0:01:41]} Nf6 {[%emt 0:03:59]} 3. c4 {[%emt 0:03:07]} e6 {[%emt 0:00:53]} 4. e3 {[%emt 0:06:49]} a6 {[%emt 0:04:45]} 5. b3 {[%emt 0:05:43]} Bb4+ {[%emt 0:00:37]} 6. Nbd2 {[%emt 0:15:37]} dxc4 {[%emt 0:06:33]} 7. bxc4 {[%emt 0:02:27]} c5 {[%emt 0:00:45]} 8. Be2 {[%emt 0:18:28]} Nc6 {[%emt 0:04:02]} 9. O-O {[%emt 0:09:45]} O-O {[%emt 0:05:42]} 10. Bb2 {[%emt 0:01:18]} cxd4 {[%emt 0:07:41]} 11. exd4 {[%emt 0:00:08]} Bd6 {[%emt 0:00:10]} 12. Bd3 {[%emt 0:06:51]} Re8 {[%emt 0:00:26]} 13. Ne4 {[%emt 0:03:19]} Nxe4 {[%emt 0:01:45]} 14. Bxe4 {[%emt 0:00:02]} f5 {[%emt 0:03:52]} 15. Bc2 {[%emt 0:01:23]} b5 {[%emt 0:03:40]} 16. c5 {[%emt 0:02:37]} Bc7 {[%emt 0:00:35]} 17. Re1 {[%emt 0:02:26]} Nb4 {[%emt 0:11:16]} 18. Bb3 {[%emt 0:04:07]} Nd5 {[%emt 0:24:23]} 19. Rc1 {[%emt 0:01:39]} Kh8 {[%emt 0:02:34]} 20. Ne5 {[%emt 0:03:05]} Bxe5 {[%emt 0:04:08]} 21. Rxe5 {[%emt 0:00:30]} Nc7 {[%emt 0:00:22]} 22. Qh5 {[%emt 0:05:38]} a5 {[%emt 0:01:53]} 23. a3 {[%emt 0:00:35]} b4 {[%emt 0:02:04]} 24. a4 {[%emt 0:04:11]} Ba6 {[%emt 0:03:58]} 25. c6 {[%emt 0:04:49]} Bd3 {[%emt 0:00:18]} 26. d5 {[%emt 0:05:07]} exd5 {[%emt 0:02:25]} 27. Qf7 {[%emt 0:00:34]} Rf8 {[%emt 0:00:52]} 28. Qd7 {[%emt 0:00:41]} Re8 {[%emt 0:09:06]} 29. Qf7 {[%emt 0:00:42]} Rxe5 {[%emt 0:04:50]} 30. Bxe5 {[%emt 0:00:06]} Qg5 {[%emt 0:00:03]} 31. f4 {[%emt 0:00:56]} Qg4 {[%emt 0:00:06]} 32. Bd1 {[%emt 0:00:51]} 1-0

[Event "Fagernes GM-A 2019"]
[Site "Fagernes"]
[Date "2019.04.15"]
[Round "2.5"]
[White "Turov, Maxim"]
[Black "Vestby-Ellingsen, Mads"]
[Result "1/2-1/2"]
[ECO "A35"]
[WhiteElo "2584"]
[BlackElo "2333"]
[Annotator "ChessBase"]
[PlyCount "67"]
[EventDate "2019.04.14"]
[EventType "tourn"]
[EventCountry "NOR"]
[SourceTitle "playchess.com"]
[Source "ChessBase"]
[SourceQuality "1"]
[TimeControl "40/7200:3600"]

1. c4 {[%emt 0:00:02]} c5 {[%emt 0:00:20]} 2. Nc3 {[%emt 0:00:05]} Nc6 {[%emt 0:00:09]} 3. Nf3 {[%emt 0:00:10]} g6 {[%emt 0:00:11]} 4. e3 {[%emt 0:00:18]} Nf6 {[%emt 0:00:13]} 5. d4 cxd4 6. exd4 d5 {[%emt 0:00:21]} 7. cxd5 {[%emt 0:02:14]} Nxd5 8. Qb3 e6 9. Bb5 Bg7 10. O-O O-O 11. Bxc6 bxc6 12. Na4 Qc7 13. Bd2 Rb8 14. Qc2 Nb4 15. Bxb4 Rxb4 16. a3 Rb8 17. Qc3 Rd8 18. Nc5 Rd5 19. Rad1 Qd8 20. Rd2 e5 21. dxe5 Bg4 22. Rxd5 Qxd5 23. Re1 Bxf3 24. gxf3 Re8 25. f4 g5 26. Nd3 Qd7 {[%emt 0:00:12]} 27. Re3 {[%emt 1:57:11]} gxf4 28. Nxf4 Qd1+ 29. Re1 Qg4+ 30. Qg3 Qxg3+ 31. hxg3 {[%emt 0:00:00]} Rxe5 {[%emt 1:31:10]} 32. Rxe5 {[%emt 0:00:00]} Bxe5 33. Nd3 Bd6 34. Kg2 {[%emt 0:00:00]} 1/2-1/2

[Event "Fagernes GM-A 2019"]
[Site "Fagernes"]
[Date "2019.04.15"]
[Round "2.6"]
[White "Hobber, Anders"]
[Black "Romanov, Evgeny"]
[Result "0-1"]
[ECO "E14"]
[WhiteElo "2295"]
[BlackElo "2576"]
[Annotator "ChessBase"]
[PlyCount "84"]
[EventDate "2019.04.14"]
[EventType "tourn"]
[EventCountry "NOR"]
[SourceTitle "playchess.com"]
[Source "ChessBase"]
[SourceQuality "1"]
[TimeControl "40/7200:3600"]

1. Nf3 {[%emt 0:08:23]} Nf6 {[%emt 0:00:18]} 2. e3 {[%emt 0:00:20]} b6 {[%emt 0:01:50]} 3. b3 {[%emt 0:01:36]} Bb7 {[%emt 0:00:38]} 4. Bb2 {[%emt 0:00:10]} e6 {[%emt 0:00:10]} 5. c4 {[%emt 0:03:29]} d5 {[%emt 0:00:48]} 6. Nc3 {[%emt 0:01:05]} Bd6 {[%emt 0:01:08]} 7. d4 {[%emt 0:04:10]} O-O {[%emt 0:01:28]} 8. Bd3 {[%emt 0:02:03]} Nbd7 {[%emt 0:01:44]} 9. cxd5 {[%emt 0:00:29]} exd5 {[%emt 0:00:36]} 10. O-O {[%emt 0:01:00]} a6 {[%emt 0:02:12]} 11. Ne2 {[%emt 0:04:19]} Qe7 {[%emt 0:02:14]} 12. Ng3 {[%emt 0:08:42]} g6 {[%emt 0:00:54]} 13. Qc2 {[%emt 0:06:16]} Rae8 {[%emt 0:16:44]} 14. Rac1 {[%emt 0:07:26]} c6 {[%emt 0:11:19]} 15. Nd2 {[%emt 0:12:11]} h5 {[%emt 0:04:45]} 16. Rfe1 {[%emt 0:04:42]} h4 {[%emt 0:04:12]} 17. Ngf1 {[%emt 0:00:05]} c5 {[%emt 0:03:42]} 18. h3 {[%emt 0:06:40]} Bb8 {[%emt 0:02:43]} 19. Nf3 {[%emt 0:03:05]} Ne4 {[%emt 0:03:11]} 20. Qe2 {[%emt 0:03:05]} a5 {[%emt 0:08:29]} 21. dxc5 {[%emt 0:02:50]} bxc5 {[%emt 0:00:46]} 22. Ba6 {[%emt 0:01:31]} Ba8 {[%emt 0:01:30]} 23. Bb5 {[%emt 0:00:19]} Rd8 {[%emt 0:00:37]} 24. Ba3 {[%emt 0:07:52]} Bd6 {[%emt 0:04:39]} 25. N1d2 {[%emt 0:05:34]} f5 {[%emt 0:04:08]} 26. Bb2 {[%emt 0:00:12]} Ndf6 {[%emt 0:10:43]} 27. Ba1 {[%emt 0:03:38]} g5 {[%emt 0:05:48]} 28. Nxe4 {[%emt 0:01:41]} Nxe4 {[%emt 0:00:24]} 29. Nd2 {[%emt 0:00:37]} Nf6 {[%emt 0:03:29]} 30. Bd3 {[%emt 0:00:59]} Qh7 {[%emt 0:04:01]} 31. Nf3 {[%emt 0:03:31]} g4 {[%emt 0:01:21]} 32. hxg4 {[%emt 0:01:46]} Nxg4 {[%emt 0:00:02]} 33. Ng5 {[%emt 0:01:55]} Qh6 {[%emt 0:01:01]} 34. f4 {[%emt 0:01:13]} Qh5 {[%emt 0:04:44]} 35. Ne6 {[%emt 0:02:45]} h3 {[%emt 0:02:02]} 36. gxh3 {[%emt 0:02:05]} Qxh3 {[%emt 0:00:23]} 37. Qg2 {[%emt 0:00:49]} Qh5 {[%emt 0:02:36]} 38. Nxf8 {[%emt 0:01:13]} d4 {[%emt 0:01:49]} 39. e4 {[%emt 0:00:04]} Rxf8 {[%emt 0:00:02]} 40. Bc4+ {[%emt 0:00:09]} Kh7 {[%emt 0:00:23]} 41. Bd5 {[%emt 0:02:09]} Bxf4 {[%emt 0:04:24]} 42. Rxc5 {[%emt 0:03:13]} Bh2+ {[%emt 0:01:49]} 0-1

[Event "Fagernes GM-A 2019"]
[Site "Fagernes"]
[Date "2019.04.15"]
[Round "2.7"]
[White "Vorobiov, Evgeny E."]
[Black "Ingebretsen, Jens E"]
[Result "1-0"]
[ECO "E12"]
[WhiteElo "2565"]
[BlackElo "2300"]
[Annotator "ChessBase"]
[PlyCount "55"]
[EventDate "2019.04.14"]
[EventType "tourn"]
[EventCountry "NOR"]
[SourceTitle "playchess.com"]
[Source "ChessBase"]
[SourceQuality "1"]
[TimeControl "40/7200:3600"]

1. d4 {[%emt 0:00:04]} Nf6 {[%emt 0:00:07]} 2. c4 {[%emt 0:00:06]} e6 {[%emt 0:00:04]} 3. Nf3 {[%emt 0:03:07]} b6 {[%emt 0:00:52]} 4. a3 {[%emt 0:00:05]} Bb7 {[%emt 0:00:40]} 5. Nc3 {[%emt 0:00:00]} d5 {[%emt 0:00:00]} 6. cxd5 {[%emt 0:00:00]} Nxd5 {[%emt 0:00:00]} 7. e3 {[%emt 0:00:00]} Nxc3 {[%emt 0:00:00]} 8. bxc3 {[%emt 0:00:00]} Bd6 {[%emt 0:00:00]} 9. Bd3 {[%emt 0:00:00]} c5 {[%emt 0:00:00]} 10. e4 {[%emt 0:00:00]} cxd4 {[%emt 0:00:00]} 11. cxd4 {[%emt 0:00:00]} O-O {[%emt 0:00:00]} 12. O-O {[%emt 0:00:00]} Nc6 {[%emt 0:00:00]} 13. Bb2 {[%emt 0:00:00]} Bf4 {[%emt 0:00:00]} 14. Qe2 {[%emt 0:00:00]} Rc8 {[%emt 0:00:00]} 15. Rad1 {[%emt 0:00:00]} Re8 {[%emt 0:00:00]} 16. Rfe1 {[%emt 0:00:00]} Qc7 {[%emt 0:00:00]} 17. Bb5 {[%emt 0:00:00]} Red8 {[%emt 0:00:00]} 18. g3 {[%emt 0:00:00]} Bh6 {[%emt 0:00:00]} 19. d5 {[%emt 0:00:00]} Na5 {[%emt 0:00:00]} 20. dxe6 {[%emt 0:00:00]} fxe6 {[%emt 0:00:00]} 21. Ne5 {[%emt 0:00:00]} Rxd1 {[%emt 0:00:00]} 22. Rxd1 {[%emt 0:00:00]} Rd8 {[%emt 0:00:00]} 23. Bd7 {[%emt 0:00:00]} Bc8 {[%emt 0:00:00]} 24. Qh5 {[%emt 0:00:00]} Nc4 {[%emt 0:00:00]} 25. Qf7+ {[%emt 0:00:00]} Kh8 {[%emt 0:00:00]} 26. Qe7 {[%emt 0:00:00]} Nxb2 {[%emt 0:00:00]} 27. Nf7+ {[%emt 0:00:00]} Kg8 {[%emt 0:00:00]} 28. Nxd8 {[%emt 0:00:00]} 1-0

[Event "Fagernes GM-A 2019"]
[Site "Fagernes"]
[Date "2019.04.15"]
[Round "2.9"]
[White "Blomqvist, Erik"]
[Black "Efroimski, Marsel"]
[Result "0-1"]
[ECO "B13"]
[WhiteElo "2496"]
[BlackElo "2287"]
[Annotator "ChessBase"]
[PlyCount "76"]
[EventDate "2019.04.14"]
[EventType "tourn"]
[EventCountry "NOR"]
[SourceTitle "playchess.com"]
[Source "ChessBase"]
[SourceQuality "1"]
[TimeControl "40/7200:3600"]

1. e4 {[%emt 0:00:08]} c6 {[%emt 0:00:40]} 2. d4 {[%emt 0:02:36]} d5 {[%emt 0:00:02]} 3. exd5 {[%emt 0:00:07]} cxd5 {[%emt 0:00:05]} 4. Bd3 {[%emt 0:00:08]} Nc6 {[%emt 0:00:03]} 5. c3 {[%emt 0:00:07]} Qc7 {[%emt 0:00:15]} 6. Ne2 {[%emt 0:00:09]} e5 {[%emt 0:00:25]} 7. dxe5 {[%emt 0:04:47]} Nxe5 {[%emt 0:00:04]} 8. Bb5+ {[%emt 0:05:51]} Bd7 {[%emt 0:00:30]} 9. Bxd7+ {[%emt 0:02:45]} Qxd7 {[%emt 0:00:16]} 10. Bf4 {[%emt 0:01:31]} Ng6 {[%emt 0:04:40]} 11. Be3 {[%emt 0:03:43]} Nf6 {[%emt 0:01:45]} 12. Nd2 {[%emt 0:06:36]} Be7 {[%emt 0:05:23]} 13. Nf3 {[%emt 0:01:07]} O-O {[%emt 0:01:05]} 14. O-O {[%emt 0:00:26]} b5 {[%emt 0:12:56]} 15. Qc2 {[%emt 0:06:19]} a5 {[%emt 0:07:44]} 16. Rad1 {[%emt 0:01:35]} b4 {[%emt 0:05:01]} 17. Rd3 {[%emt 0:12:29]} Qb7 {[%emt 0:10:59]} 18. Rfd1 {[%emt 0:01:14]} Rfb8 {[%emt 0:04:41]} 19. b3 {[%emt 0:25:30]} Rc8 {[%emt 0:15:17]} 20. Qb1 {[%emt 0:05:27]} Bc5 {[%emt 0:03:02]} 21. h3 {[%emt 0:06:40]} Bxe3 {[%emt 0:06:30]} 22. Rxe3 {[%emt 0:00:08]} Re8 {[%emt 0:08:13]} 23. Rxe8+ {[%emt 0:02:59]} Rxe8 {[%emt 0:00:04]} 24. Qd3 {[%emt 0:03:12]} Ne5 {[%emt 0:06:23]} 25. Nxe5 {[%emt 0:02:06]} Rxe5 {[%emt 0:00:01]} 26. Nd4 {[%emt 0:00:36]} Qe7 {[%emt 0:03:17]} 27. Kf1 {[%emt 0:05:38]} Qc5 {[%emt 0:03:18]} 28. f3 {[%emt 0:04:54]} Qc7 {[%emt 0:04:49]} 29. cxb4 {[%emt 0:01:48]} axb4 {[%emt 0:00:31]} 30. Qd2 {[%emt 0:01:58]} Re8 {[%emt 0:02:52]} 31. Qxb4 {[%emt 0:00:15]} Qh2 {[%emt 0:01:15]} 32. Re1 {[%emt 0:00:44]} Ra8 {[%emt 0:03:56]} 33. a4 {[%emt 0:00:59]} Nh5 {[%emt 0:00:43]} 34. Qb7 {[%emt 0:04:49]} Rf8 {[%emt 0:02:09]} 35. Ne2 {[%emt 0:00:20]} Re8 {[%emt 0:00:35]} 36. Kf2 {[%emt 0:00:11]} Qe5 {[%emt 0:00:12]} 37. Qb4 {[%emt 0:00:01]} Qe3+ {[%emt 0:00:11]} 38. Kf1 {[%emt 0:00:01]} d4 {[%emt 0:00:05]} 0-1

[Event "Fagernes GM-A 2019"]
[Site "Fagernes"]
[Date "2019.04.15"]
[Round "2.12"]
[White "Kizatbay, Abyl"]
[Black "Machlik, Edit"]
[Result "1-0"]
[ECO "B13"]
[WhiteElo "2108"]
[BlackElo "2109"]
[Annotator "NA"]
[PlyCount "79"]
[EventDate "2019.04.14"]
[EventType "tourn"]
[EventCountry "NOR"]
[SourceTitle "playchess.com"]
[Source "ChessBase"]
[SourceQuality "1"]
[TimeControl "40/7200:3600"]

1. e4 {[%emt 0:00:02]} c6 {[%emt 0:00:03]} 2. d4 {[%emt 0:00:14]} d5 {[%emt 0:00:12]} 3. exd5 {[%emt 0:00:04]} cxd5 {[%emt 0:00:11]} 4. Nf3 {[%emt 0:00:05]} Nc6 {[%emt 0:00:18]} 5. Ne5 {[%emt 0:00:05]} e6 {[%emt 0:00:25]} 6. Bb5 {[%emt 0:00:32]} Bd7 {[%emt 0:00:16]} 7. Nxd7 {[%emt 0:00:17]} Qxd7 {[%emt 0:00:09]} 8. c3 {[%emt 0:00:22]} Nf6 {[%emt 0:01:57]} 9. Bf4 {[%emt 0:05:57]} Be7 {[%emt 0:05:58]} 10. O-O {[%emt 0:00:58]} O-O {[%emt 0:02:41]} 11. Nd2 {[%emt 0:00:54]} a6 {[%emt 0:00:28]} 12. Bd3 {[%emt 0:00:16]} Rac8 {[%emt 0:04:34]} 13. Qe2 {[%emt 0:08:02]} Qd8 {[%emt 0:04:11]} 14. g4 {[%emt 0:10:55]} Ne8 {[%emt 0:05:27]} 15. Nf3 {[%emt 0:08:57]} Nd6 {[%emt 0:16:41]} 16. Ne5 {[%emt 0:09:24]} Nxe5 {[%emt 0:02:53]} 17. dxe5 {[%emt 0:11:30]} Nc4 {[%emt 0:01:22]} 18. Rad1 $11 {[%emt 0:03:09]} Qc7 {[%emt 0:08:07]} 19. Bg3 {[%emt 0:11:17]} Qb6 {[%emt 0:05:03]} 20. Bf4 {[%emt 0:09:24]} Qa5 {[%emt 0:10:55]} 21. Bb1 {[%emt 0:01:30]} Qb6 {[%emt 0:03:10]} 22. Bc1 {[%emt 0:00:58]} Qc7 {[%emt 0:07:21]} 23. f4 {[%emt 0:02:38]} g6 {[%emt 0:07:08]} 24. Kh1 {[%emt 0:01:37]} Rfe8 {[%emt 0:04:26]} 25. Rf3 {[%emt 0:01:02]} Bf8 {[%emt 0:03:17]} 26. Re1 {[%emt 0:02:12]} Bg7 {[%emt 0:00:43]} 27. b3 {[%emt 0:00:39]} Na5 {[%emt 0:03:55]} 28. Ba3 {[%emt 0:00:36]} Nc6 {[%emt 0:02:09]} 29. Qf2 {[%emt 0:02:48]} f6 {[%emt 0:07:56]} 30. exf6 {[%emt 0:08:45]} Bxf6 {[%emt 0:00:36]} 31. Rh3 {[%emt 0:01:23]} Qa5 {[%emt 0:02:38]} 32. Bd6 {[%emt 0:01:12]} Rcd8 {[%emt 0:01:28]} 33. Be5 {[%emt 0:02:48]} Nxe5 {[%emt 0:00:15]} 34. fxe5 {[%emt 0:00:03]} Bh8 {[%emt 0:00:32]} 35. Qh4 {[%emt 0:03:52]} Qc7 {[%emt 0:00:05]} 36. Bxg6 {[%emt 0:00:04]} Re7 {[%emt 0:00:07]} 37. Bb1 {[%emt 0:02:20]} Rg7 {[%emt 0:01:30]} 38. g5 {[%emt 0:00:47]} Qe7 {[%emt 0:00:38]} 39. Qh6 {[%emt 0:00:01]} Rf8 {[%emt 0:00:10]} 40. g6 {[%emt 0:00:09]} 1-0

[Event "Fagernes GM-A 2019"]
[Site "Fagernes"]
[Date "2019.04.15"]
[Round "2.13"]
[White "Bentsen, Hakon"]
[Black "Dahl, Trygve"]
[Result "1/2-1/2"]
[ECO "B47"]
[WhiteElo "2155"]
[BlackElo "2275"]
[Annotator "NA"]
[PlyCount "118"]
[EventDate "2019.04.14"]
[EventType "tourn"]
[EventCountry "NOR"]
[SourceTitle "playchess.com"]
[Source "ChessBase"]
[SourceQuality "1"]
[TimeControl "40/7200:3600"]

1. e4 {[%emt 0:00:03]} c5 {[%emt 0:00:26]} 2. Nf3 {[%emt 0:00:08]} Nc6 {[%emt 0:00:06]} 3. d4 {[%emt 0:00:42]} cxd4 {[%emt 0:00:06]} 4. Nxd4 {[%emt 0:00:04]} Qc7 {[%emt 0:00:10]} 5. Nc3 {[%emt 0:01:27]} e6 {[%emt 0:00:10]} 6. g3 {[%emt 0:02:11]} a6 {[%emt 0:02:04]} 7. Bg2 {[%emt 0:00:48]} Nf6 {[%emt 0:00:09]} 8. O-O {[%emt 0:00:34]} h5 {[%emt 0:04:10]} 9. Bf4 {[%emt 0:17:14]} e5 {[%emt 0:07:54]} 10. Nxc6 {[%emt 0:30:52]} dxc6 {[%emt 0:01:47]} 11. Bg5 {[%emt 0:00:20]} Be7 {[%emt 0:02:49]} 12. Qe2 {[%emt 0:02:19]} Be6 {[%emt 0:02:41]} 13. Rfd1 {[%emt 0:02:12]} g6 {[%emt 0:32:09]} 14. h4 {[%emt 0:02:34]} O-O {[%emt 0:01:04]} 15. b3 $11 {[%emt 0:01:25]} b5 {[%emt 0:06:00]} 16. Rd3 {[%emt 0:02:05]} Rfc8 {[%emt 0:06:42]} 17. f3 {[%emt 0:05:42]} a5 {[%emt 0:01:11]} 18. Kh2 {[%emt 0:01:52]} a4 {[%emt 0:10:00]} 19. Rc1 {[%emt 0:02:39]} a3 {[%emt 0:03:34]} 20. Bh3 {[%emt 0:01:05]} Bxh3 {[%emt 0:06:14]} 21. Kxh3 {[%emt 0:00:15]} Ne8 {[%emt 0:03:12]} 22. Be3 {[%emt 0:04:00]} Ng7 {[%emt 0:02:05]} 23. Rcd1 {[%emt 0:00:42]} Rd8 {[%emt 0:00:47]} 24. Rxd8+ {[%emt 0:02:19]} Rxd8 {[%emt 0:00:24]} 25. Rxd8+ {[%emt 0:00:06]} Qxd8 {[%emt 0:00:19]} 26. Qd3 {[%emt 0:00:25]} Qxd3 {[%emt 0:01:07]} 27. cxd3 {[%emt 0:00:06]} Ne6 {[%emt 0:00:05]} 28. Ne2 {[%emt 0:03:18]} Bc5 {[%emt 0:04:53]} 29. Bc1 {[%emt 0:00:21]} b4 {[%emt 0:00:49]} 30. Bd2 {[%emt 0:00:10]} Nc7 {[%emt 0:05:24]} 31. f4 {[%emt 0:03:30]} f6 {[%emt 0:01:55]} 32. fxe5 {[%emt 0:00:24]} fxe5 {[%emt 0:00:07]} 33. g4 {[%emt 0:00:37]} Kf7 {[%emt 0:01:58]} 34. gxh5 {[%emt 0:00:31]} gxh5 {[%emt 0:00:02]} 35. Kg3 {[%emt 0:00:59]} Na6 {[%emt 0:01:16]} 36. Kf3 {[%emt 0:00:30]} Ke6 {[%emt 0:01:10]} 37. Ng3 {[%emt 0:03:07]} Bd4 {[%emt 0:01:52]} 38. Nxh5 {[%emt 0:01:07]} c5 {[%emt 0:00:36]} 39. Ng7+ {[%emt 0:00:19]} Kf7 {[%emt 0:00:35]} 40. Nf5 {[%emt 0:00:06]} Nb8 {[%emt 0:00:29]} 41. Kg4 {[%emt 1:05:52]} Nc6 {[%emt 1:00:55]} 42. Ne3 {[%emt 0:03:53]} Bc3 {[%emt 0:00:00]} 43. Nc4 {[%emt 0:00:00]} Nd4 {[%emt 0:00:00]} 44. Nxe5+ {[%emt 0:00:00]} Ke6 {[%emt 0:00:00]} 45. Nc4 {[%emt 0:00:00]} Nxb3 {[%emt 0:00:00]} 46. Bxc3 {[%emt 0:00:00]} bxc3 {[%emt 0:00:00]} 47. Nxa3 {[%emt 0:00:00]} Nc1 {[%emt 0:00:00]} 48. h5 {[%emt 0:00:00]} Nxd3 {[%emt 0:00:00]} 49. h6 {[%emt 0:00:00]} Kf6 {[%emt 0:00:00]} 50. Kf3 {[%emt 0:00:00]} Kg6 {[%emt 0:00:00]} 51. Ke3 {[%emt 0:00:00]} Nb4 {[%emt 0:00:00]} 52. Nb5 {[%emt 0:00:00]} Nxa2 {[%emt 0:00:00]} 53. Kd3 {[%emt 0:00:00]} c4+ {[%emt 0:00:00]} 54. Kc2 {[%emt 0:00:00]} Kxh6 {[%emt 0:00:00]} 55. Nxc3 {[%emt 0:00:00]} Nb4+ {[%emt 0:00:00]} 56. Kd2 {[%emt 0:00:00]} Kg6 {[%emt 0:00:00]} 57. Nd5 {[%emt 0:00:00]} Nd3 {[%emt 0:00:00]} 58. Kc3 {[%emt 0:00:00]} Nc5 {[%emt 0:00:00]} 59. Kxc4 {[%emt 0:00:00]} Nxe4 {[%emt 0:00:34]} 1/2-1/2

[Event "Fagernes GM-A 2019"]
[Site "Fagernes"]
[Date "2019.04.15"]
[Round "2.14"]
[White "Nordquelle, Daniel"]
[Black "Lindbol, Aleksander"]
[Result "0-1"]
[ECO "B12"]
[WhiteElo "2264"]
[BlackElo "2139"]
[Annotator "NA"]
[PlyCount "90"]
[EventDate "2019.04.14"]
[EventType "tourn"]
[EventCountry "NOR"]
[SourceTitle "playchess.com"]
[Source "ChessBase"]
[SourceQuality "1"]
[TimeControl "40/7200:3600"]

1. e4 {[%emt 0:00:03]} c6 {[%emt 0:00:15]} 2. d4 {[%emt 0:00:06]} d5 {[%emt 0:00:06]} 3. e5 {[%emt 0:00:05]} Bf5 {[%emt 0:00:11]} 4. h4 {[%emt 0:00:04]} h5 {[%emt 0:00:27]} 5. c4 {[%emt 0:00:06]} e6 {[%emt 0:01:22]} 6. Nc3 {[%emt 0:00:06]} Ne7 {[%emt 0:01:15]} 7. Nge2 {[%emt 0:00:23]} Nd7 {[%emt 0:00:28]} 8. Ng3 {[%emt 0:00:16]} Bg6 {[%emt 0:00:27]} 9. Bg5 {[%emt 0:01:15]} Qb6 {[%emt 0:03:33]} 10. Na4 {[%emt 0:33:56]} Qc7 {[%emt 0:05:03]} 11. c5 {[%emt 0:01:10]} b6 {[%emt 0:23:02]} 12. b4 {[%emt 0:00:25]} f6 {[%emt 0:17:39]} 13. exf6 {[%emt 0:01:26]} gxf6 {[%emt 0:00:05]} 14. Be3 {[%emt 0:00:06]} bxc5 {[%emt 0:13:51]} 15. bxc5 $11 {[%emt 0:07:30]} f5 {[%emt 0:05:08]} 16. Ne2 {[%emt 0:08:44]} Bg7 {[%emt 0:05:10]} 17. Nf4 {[%emt 0:05:42]} Bf7 {[%emt 0:01:21]} 18. Be2 {[%emt 0:07:24]} Nf6 {[%emt 0:04:14]} 19. f3 {[%emt 0:07:12]} e5 {[%emt 0:10:53]} 20. dxe5 {[%emt 0:07:34]} Qxe5 {[%emt 0:00:13]} 21. Kf2 {[%emt 0:05:03]} d4 {[%emt 0:01:42]} 22. Bd2 {[%emt 0:02:41]} Bh6 {[%emt 0:08:50]} 23. Qc1 {[%emt 0:02:16]} Ne4+ {[%emt 0:06:24]} 24. fxe4 {[%emt 0:02:58]} fxe4 {[%emt 0:00:01]} 25. Kg1 {[%emt 0:06:02]} e3 {[%emt 0:01:00]} 26. Bxe3 {[%emt 0:00:09]} Qxe3+ {[%emt 0:01:10]} 27. Qxe3 {[%emt 0:00:08]} dxe3 {[%emt 0:00:03]} 28. Nxh5 {[%emt 0:00:38]} Nd5 {[%emt 0:01:05]} 29. Bf3 {[%emt 0:07:57]} Rb8 {[%emt 0:00:35]} 30. Kh2 {[%emt 0:01:23]} Rb4 {[%emt 0:00:18]} 31. Rhb1 {[%emt 0:00:27]} Bxh5 {[%emt 0:01:06]} 32. Bxh5+ {[%emt 0:00:17]} Ke7 {[%emt 0:00:01]} 33. Rxb4 {[%emt 0:00:56]} Nxb4 {[%emt 0:00:02]} 34. Bf3 {[%emt 0:00:41]} Bg7 {[%emt 0:00:40]} 35. Rb1 {[%emt 0:01:58]} Rxh4+ {[%emt 0:00:48]} 36. Kg3 {[%emt 0:00:01]} Rd4 {[%emt 0:00:01]} 37. Nc3 {[%emt 0:01:03]} Be5+ {[%emt 0:00:12]} 38. Kh3 {[%emt 0:00:03]} Nd3 {[%emt 0:00:14]} 39. g3 {[%emt 0:00:56]} Nxc5 {[%emt 0:00:35]} 40. Bxc6 {[%emt 0:00:19]} Rd2 {[%emt 0:00:03]} 41. Ne4 {[%emt 0:10:36]} Nxe4 {[%emt 0:07:41]} 42. Bxe4 {[%emt 0:00:07]} Rxa2 {[%emt 0:00:13]} 43. Re1 {[%emt 0:02:46]} Bd4 {[%emt 0:02:19]} 44. g4 {[%emt 0:05:03]} Kf6 {[%emt 0:01:51]} 45. Kh4 {[%emt 0:04:30]} e2 {[%emt 0:03:30]} 0-1